fUSD/lending_fUSD_20250302
["ID","MTS","AMOUNT","RATE_DAILY","PERIOD"]
[355061309,1740886239949,-153.115968,0.00025203,7]
[355061311,1740886239959,-500.0,0.00025203,2]
[355061313,1740886239968,-500.0,0.00025203,2]
[355061316,1740886239978,-503.39894588,0.00025203,2]
[355061318,1740886239987,-509.53444974,0.00025203,2]
[355061320,1740886239997,-509.33101122,0.00025203,2]
[355061322,1740886240007,-162.79263304,0.00025203,2]
[355061324,1740886240016,-151.0,0.00025203,7]
[355061326,1740886240025,-1280.59,0.00025203,2]
[355061328,1740886240035,-332.39684494,0.00025203,2]
[355061330,1740886240044,-516.21793777,0.00025203,2]
[355061332,1740886240054,-500.0,0.00025203,2]
[355061334,1740886240064,-613.87,0.00025203,2]
[355061336,1740886240073,-506.63640747,0.00025203,2]
[355061338,1740886240083,-500.0,0.00025203,2]
[355061340,1740886240093,-500.0,0.00025203,2]
[355061342,1740886240103,-506.10380673,0.00025203,2]
[355061344,1740886240112,-1032.28,0.00025203,2]
[355061346,1740886240122,-500.0,0.00025203,2]
[355061348,1740886240131,-504.62540028,0.00025203,2]
[355061351,1740886240141,-744.55,0.00025203,2]
[355061353,1740886240151,-1104.35,0.00025203,2]
[355061355,1740886240160,-601.91629172,0.00025203,2]
[355061357,1740886240169,-151.0,0.00025203,7]
[355061359,1740886240179,-511.47592369,0.00025203,2]
[355061361,1740886240189,-558.960244,0.00025203,7]
[355061363,1740886240198,-500.0,0.00025203,2]
[355061365,1740886240208,-224.55128849,0.00025203,2]
[355061369,1740886240218,-1457.92,0.00025203,2]
[355061371,1740886240231,-511.04812163,0.00025203,2]
[355061373,1740886240240,-558.960244,0.00025203,7]
[355061375,1740886240250,-500.0,0.00025203,2]
[355061377,1740886240260,-506.6859832,0.00025203,2]
[355061379,1740886240271,-505.67446826,0.00025203,2]
[355061381,1740886240281,-151.0,0.00025203,7]
[355061383,1740886240291,-516.23263313,0.00025203,2]
[355061385,1740886240303,-500.0,0.00025203,2]
[355061388,1740886240314,-500.0,0.00025203,2]
[355061390,1740886240324,-514.46219925,0.00025203,2]
[355061392,1740886240333,-1709.58,0.00025203,2]
[355061394,1740886240344,-500.0,0.00025203,2]
[355061396,1740886240355,-500.0,0.00025203,2]
[355061398,1740886240364,-500.0,0.00025203,2]
[355061400,1740886240375,-513.84486216,0.00025203,2]
[355061402,1740886240384,-1889.57,0.00025203,2]
[355061404,1740886240394,-509.00931644,0.00025203,2]
[355061406,1740886240403,-500.0,0.00025203,2]
[355061408,1740886240413,-507.35159835,0.00025203,2]
[355061410,1740886240423,-232.71135679,0.00025203,2]
[355061412,1740886240432,-611.76637016,0.00025203,2]
[355061414,1740886240441,-1547.38,0.00025203,2]
[355061416,1740886240451,-500.0,0.00025203,2]
[355061418,1740886240460,-500.0,0.00025203,2]
[355061420,1740886240470,-500.0,0.00025203,2]
[355061422,1740886240480,-506.11812332,0.00025203,2]
[355061424,1740886240490,-341.19607216,0.00025203,2]
[355061426,1740886240499,-551.23913149,0.00025203,2]
[355061428,1740886240508,-375.58810648,0.00025203,2]
[355061430,1740886240518,-522.6094835,0.00025203,2]
[355061446,1740886240659,-1485.16,0.00025203,2]
[355061448,1740886240669,-509.33385168,0.00025203,2]
[355061450,1740886240679,-500.0,0.00025203,2]
[355061452,1740886240688,-945.2,0.00025203,2]
[355061454,1740886240698,-502.36080605,0.00025203,2]
[355061456,1740886240707,-505.34480309,0.00025203,2]
[355061458,1740886240716,-497.0,0.00025203,2]
[355061460,1740886240725,-500.0,0.00025203,2]
[355061462,1740886240734,-504.61702525,0.00025203,2]
[355061464,1740886240744,-508.99617316,0.00025203,2]
[355061466,1740886240753,-500.0,0.00025203,2]
[355061468,1740886240763,-524.48528077,0.00025203,2]
[355061470,1740886240772,-500.0,0.00025203,2]
[355061472,1740886240781,-505.33849458,0.00025203,2]
[355061474,1740886240791,-549.14,0.00025203,2]
[355061476,1740886240801,-500.0,0.00025203,2]
[355061478,1740886240810,-500.0,0.00025203,2]
[355061480,1740886240819,-596.9,0.00025203,2]
[355061482,1740886240829,-500.0,0.00025203,2]
[355061484,1740886240838,-500.0,0.00025203,2]
[355061486,1740886240848,-1874.6,0.00025203,2]
[355061487,1740886240857,-500.0,0.00025203,2]
[355061489,1740886240867,-500.0,0.00025203,2]
[355061491,1740886240876,-500.0,0.00025204,2]
[355061493,1740886240885,-500.0,0.00025204,2]
[355061495,1740886240894,-500.0,0.00025204,2]
[355061497,1740886240903,-500.0,0.00025204,2]
[355061499,1740886240913,-500.0,0.00025204,2]
[355061501,1740886240923,-647.64,0.00025204,2]
[355061503,1740886240932,-500.0,0.00025204,2]
[355061505,1740886240942,-505.15463365,0.00025204,2]
[355061507,1740886240952,-534.37,0.00025204,2]
[355061509,1740886240962,-500.0,0.00025204,2]
[355061511,1740886240972,-500.0,0.00025204,2]
[355061513,1740886240982,-500.0,0.00025204,2]
[355061515,1740886240991,-500.0,0.00025204,2]
[355061517,1740886241001,-479.14,0.00025204,2]
[355061519,1740886241011,-500.0,0.00025204,2]
[355061521,1740886241021,-500.0,0.00025204,2]
[355061523,1740886241030,-500.0,0.00025204,2]
[355061525,1740886241039,-374.49009309,0.00025204,2]
[355061527,1740886241054,-500.0,0.00025204,2]
[355061529,1740886241064,-500.0,0.00025204,2]
[355061531,1740886241074,-500.0,0.00025204,2]
[355061533,1740886241084,-500.0,0.00025204,2]
[355061535,1740886241093,-500.0,0.00025204,2]
[355061537,1740886241103,-500.0,0.00025204,2]
[355061539,1740886241112,-500.0,0.00025204,2]
[355061541,1740886241121,-500.0,0.00025204,2]
[355061543,1740886241130,-500.0,0.00025204,2]
[355061545,1740886241140,-500.0,0.00025204,2]
[355061547,1740886241149,-500.0,0.00025204,2]
[355061549,1740886241159,-500.0,0.00025204,2]
[355061551,1740886241169,-793.43,0.00025204,2]
[355061553,1740886241179,-500.0,0.00025204,2]
[355061555,1740886241188,-500.0,0.00025204,2]
[355061557,1740886241197,-500.0,0.00025204,2]
[355061559,1740886241206,-500.0,0.00025204,2]
[355061561,1740886241215,-511.55603,0.00025204,2]
[355061563,1740886241227,-500.0,0.00025204,2]
[355061565,1740886241236,-511.27317529,0.00025204,2]
[355061567,1740886241245,-500.0,0.00025204,2]
[355061569,1740886241259,-500.0,0.00025204,2]
[355061571,1740886241270,-500.0,0.00025204,2]
[355061573,1740886241280,-500.0,0.00025204,2]
[355061575,1740886241290,-500.0,0.00025204,2]
[355061577,1740886241301,-511.78867461,0.00025204,2]
[355061579,1740886241310,-500.0,0.00025204,2]
[355061581,1740886241320,-500.0,0.00025204,2]
[355061583,1740886241330,-500.0,0.00025204,2]
[355061585,1740886241339,-500.0,0.00025204,2]
[355061587,1740886241349,-759.83,0.00025204,2]
[355061589,1740886241359,-758.88,0.00025204,2]
[355061591,1740886241368,-506.64715079,0.00025204,2]
[355061593,1740886241378,-620.81902859,0.00025204,2]
[355061595,1740886241388,-500.0,0.00025204,2]
[355061597,1740886241397,-500.0,0.00025204,2]
[355061599,1740886241407,-500.0,0.00025204,2]
[355061601,1740886241417,-508.40305883,0.00025204,2]
[355061603,1740886241427,-504.80623299,0.00025204,2]
[355061605,1740886241436,-511.96,0.00025204,2]
[355061607,1740886241446,-500.0,0.00025204,2]
[355061609,1740886241456,-500.0,0.00025204,2]
[355061611,1740886241465,-500.0,0.00025204,2]
[355061613,1740886241475,-773.0,0.00025204,2]
[355061615,1740886241485,-972.77,0.00025204,2]
[355061617,1740886241494,-500.0,0.00025204,2]
[355061619,1740886241504,-500.0,0.00025204,2]
[355061621,1740886241514,-500.0,0.00025204,2]
[355061623,1740886241524,-930.92,0.00025204,2]
[355061625,1740886241533,-500.0,0.00025204,2]
[355061626,1740886241543,-500.0,0.00025204,2]
[355061628,1740886241553,-500.0,0.00025204,2]
[355061630,1740886241562,-500.0,0.00025204,2]
[355061632,1740886241572,-1323.95,0.00025204,2]
[355061634,1740886241581,-500.0,0.00025204,2]
[355061636,1740886241591,-522.96775269,0.00025204,2]
[355061638,1740886241600,-585.56,0.00025204,2]
[355061640,1740886241610,-596.03,0.00025204,2]
[355061642,1740886241619,-503.14856092,0.00025204,2]
[355061644,1740886241628,-500.0,0.00025204,2]
[355061646,1740886241639,-500.0,0.00025204,2]
[355061648,1740886241648,-500.0,0.00025204,2]
[355061650,1740886241658,-676.15,0.00025204,2]
[355061652,1740886241667,-500.0,0.00025204,2]
[355061654,1740886241676,-615.85,0.00025204,2]
[355061656,1740886241686,-500.0,0.00025204,2]
[355061658,1740886241695,-628.7,0.00025204,2]
[355061660,1740886241704,-504.99925811,0.00025204,2]
[355061662,1740886241716,-1083.56,0.00025204,2]
[355061664,1740886241726,-725.32,0.00025204,2]
[355061666,1740886241735,-500.0,0.00025204,2]
[355061668,1740886241746,-500.0,0.00025204,2]
[355061670,1740886241755,-500.0,0.00025204,2]
[355061672,1740886241769,-512.22652661,0.00025204,2]
[355061674,1740886241779,-500.0,0.00025204,2]
[355061676,1740886241788,-574.97,0.00025204,2]
[355061678,1740886241800,-500.0,0.00025204,2]
[355061680,1740886241809,-500.0,0.00025204,2]
[355061682,1740886241819,-500.0,0.00025204,2]
[355061684,1740886241828,-500.0,0.00025204,2]
[355061686,1740886241838,-1484.24,0.00025204,2]
[355061688,1740886241847,-500.0,0.00025204,2]
[355061690,1740886241858,-500.0,0.00025204,2]
[355061692,1740886241867,-500.0,0.00025204,2]
[355061694,1740886241877,-852.48,0.00025204,2]
[355061696,1740886241887,-500.0,0.00025204,2]
[355061698,1740886241896,-1071.39556083,0.00025205,2]
[355061700,1740886241906,-200.0,0.00025205,2]
[355061702,1740886241916,-200.0,0.00025205,2]
[355061704,1740886241925,-594.87,0.00025205,2]
[355061706,1740886241935,-500.0,0.00025205,2]
[355061708,1740886241945,-500.0,0.00025205,2]
[355061710,1740886241955,-2118.74,0.00025205,2]
[355061712,1740886241964,-500.0,0.00025205,2]
[355061714,1740886241974,-770.88,0.00025205,2]
[355061716,1740886241983,-689.78,0.00025205,2]
[355061718,1740886241994,-500.0,0.00025205,2]
[355061720,1740886242004,-1773.24,0.00025205,2]
[355061722,1740886242013,-500.0,0.00025205,2]
[355061724,1740886242023,-500.0,0.00025205,2]
[355061726,1740886242032,-829.94,0.00025205,2]
[355061728,1740886242042,-700.04,0.00025205,2]
[355061730,1740886242054,-2186.92,0.00025205,2]
[355061732,1740886242064,-935.67,0.00025205,2]
[355061734,1740886242073,-2071.99,0.00025205,2]
[355061736,1740886242083,-1297.72,0.00025205,2]
[355061738,1740886242092,-1265.46,0.00025205,2]
[355061740,1740886242102,-1949.08,0.00025205,2]
[355061742,1740886242114,-500.0,0.00025205,2]
[355061744,1740886242124,-500.0,0.00025205,2]
[355061746,1740886242133,-500.0,0.00025205,2]
[355061748,1740886242144,-500.0,0.00025205,2]
[355061750,1740886242153,-500.0,0.00025205,2]
[355061752,1740886242164,-500.0,0.00025205,2]
[355061754,1740886242173,-500.0,0.00025205,2]
[355061756,1740886242183,-921.11,0.00025205,2]
[355061758,1740886242193,-500.0,0.00025205,2]
[355061760,1740886242203,-500.0,0.00025205,2]
[355061762,1740886242215,-500.0,0.00025205,2]
[355061764,1740886242225,-531.79713823,0.00025205,2]
[355061766,1740886242237,-500.0,0.00025205,2]
[355061768,1740886242246,-892.94,0.00025205,2]
[355061770,1740886242256,-500.0,0.00025205,2]
[355061772,1740886242267,-500.0,0.00025205,2]
[355061774,1740886242277,-500.0,0.00025205,2]
[355061777,1740886242290,-748.2053251,0.00025237,4]
[355061779,1740886242302,-749.91726168,0.00025238,2]
[355061781,1740886242311,-156.76,0.00025253,2]
[355061783,1740886242321,-169.4599276,0.00025272,2]
[355061785,1740886242331,-500.0,0.00025273,2]
[355061787,1740886242341,-506.18498148,0.00025273,2]
[355061789,1740886242350,-152.465816,0.00025273,7]
[355061791,1740886242360,-161.719533,0.00025273,7]
[355061793,1740886242370,-558.960244,0.00025273,7]
[355061795,1740886242379,-558.960244,0.00025273,7]
[355061797,1740886242389,-151.0,0.00025273,7]
[355061799,1740886242399,-428.82685613,0.00025296,120]
[355061801,1740886242408,-1616.38901518,0.00025296,120]
[355061803,1740886242418,-469.15959501,0.00025296,120]
[355061805,1740886242428,-817.0,0.000253,2]
[355061807,1740886242437,-926.0,0.000253,2]
[355061809,1740886242447,-31237.2098,0.00025371,2]
[355061811,1740886242456,-151.0,0.00025372,7]
[355061813,1740886242466,-12834.9178,0.00025372,2]
[355061815,1740886242476,-33563.0304,0.00025372,2]
[355061817,1740886242486,-500.0,0.00025379,2]
[355061819,1740886242495,-156.76,0.00025389,2]
[355061820,1740886242505,-173.34,0.00025431,2]
[355061822,1740886242514,-200.0,0.00025457,2]
[355061824,1740886242524,-200.0,0.00025457,2]
[355061826,1740886242533,-500.0,0.00025469,2]
[355061828,1740886242544,-500.0,0.00025469,2]
[355061830,1740886242553,-500.0,0.00025469,2]
[355061832,1740886242563,-1920.82,0.00025469,2]
[355061834,1740886242573,-500.0,0.00025469,2]
[355061836,1740886242583,-500.0,0.00025469,2]
[355061838,1740886242593,-500.0,0.00025469,2]
[355061840,1740886242602,-634.404577,0.00025469,2]
[355061842,1740886242612,-888.71,0.00025469,2]
[355061844,1740886242621,-500.0,0.00025469,2]
[355061846,1740886242631,-500.0,0.00025469,2]
[355061848,1740886242640,-1223.77,0.00025469,2]
[355061850,1740886242650,-687.32,0.00025469,2]
[355061852,1740886242659,-1307.848542,0.00025469,2]
[355061854,1740886242669,-587.99,0.00025469,2]
[355061856,1740886242678,-784.37,0.00025469,2]
[355061858,1740886242687,-536.68,0.00025469,2]
[355061860,1740886242696,-500.0,0.00025469,2]
[355061861,1740886242705,-909.18,0.00025469,2]
[355061864,1740886242715,-804.26,0.00025469,2]
[355061866,1740886242725,-500.0,0.00025469,2]
[355061867,1740886242734,-500.0,0.00025469,2]
[355061881,1740886242864,-1965.8,0.00025469,2]
[355061883,1740886242874,-1217.64,0.00025469,2]
[355061885,1740886242883,-1549.49,0.00025469,2]
[355061887,1740886242893,-1656.93,0.00025469,2]
[355061889,1740886242902,-500.0,0.00025469,2]
[355061892,1740886242922,-2049.58,0.00025469,2]
[355061895,1740886242935,-1403.0,0.00025469,2]
[355061897,1740886242945,-599.61,0.00025469,2]
[355061899,1740886242956,-1415.66,0.00025469,2]
[355061902,1740886242966,-151.0,0.0002547,7]
[355061904,1740886242977,-151.0,0.0002547,7]
[355061906,1740886242987,-151.0,0.0002547,7]
[355061908,1740886242997,-151.286771,0.0002547,7]
[355061910,1740886243007,-1518.4,0.0002547,2]
[355061912,1740886243017,-151.0,0.0002547,7]
[355061915,1740886243027,-151.0,0.0002547,7]
[355061918,1740886243037,-151.0,0.0002547,7]
[355061920,1740886243048,-1174.52,0.0002547,2]
[355061922,1740886243058,-568.93,0.00025472,2]
[355061924,1740886243068,-500.0,0.00025472,2]
[355061926,1740886243078,-500.0,0.00025472,2]
[355061928,1740886243088,-500.0,0.00025472,2]
[355061930,1740886243098,-500.0,0.00025472,2]
[355061932,1740886243108,-500.0,0.00025472,2]
[355061934,1740886243118,-500.0,0.00025472,2]
[355061936,1740886243128,-500.0,0.00025472,2]
[355061938,1740886243139,-264.05551747,0.00025472,2]
[355061940,1740886243148,-500.0,0.00025472,2]
[355061942,1740886243158,-507.08028235,0.00025472,2]
[355061944,1740886243168,-515.07376051,0.00025472,2]
[355061946,1740886243179,-1119.09,0.00025472,2]
[355061947,1740886243189,-500.0,0.00025472,2]
[355061948,1740886243200,-500.0,0.00025472,2]
[355061949,1740886243211,-500.0,0.00025472,2]
[355061951,1740886243222,-500.0,0.00025472,2]
[355061953,1740886243235,-510.84499921,0.00025472,2]
[355061955,1740886243246,-500.0,0.00025472,2]
[355061959,1740886243256,-500.0,0.00025472,2]
[355061962,1740886243267,-500.0,0.00025472,2]
[355061965,1740886243278,-1177.24,0.00025472,2]
[355061967,1740886243288,-500.0,0.00025472,2]
[355061969,1740886243300,-503.75386717,0.00025472,2]
[355061972,1740886243311,-500.0,0.00025472,2]
[355061975,1740886243321,-737.91,0.00025472,2]
[355061977,1740886243331,-217.8795537,0.00025472,2]
[355061980,1740886243341,-572.57,0.00025472,2]
[355061982,1740886243352,-507.69727151,0.00025472,2]
[355061984,1740886243362,-500.0,0.00025472,2]
[355061986,1740886243372,-500.0,0.00025472,2]
[355061987,1740886243382,-504.33245075,0.00025472,2]
[355061990,1740886243392,-558.960244,0.00025472,7]
[355061992,1740886243402,-558.960244,0.00025472,7]
[355061994,1740886243411,-151.0,0.00025472,7]
[355061996,1740886243421,-501.68887997,0.00025473,2]
[355061998,1740886243437,-166.91713003,0.00025473,2]
[355062000,1740886243447,-522.8055934,0.00025473,2]
[355062002,1740886243457,-233.01724078,0.00025477,2]
[355062004,1740886243468,-500.0,0.00025477,2]
[355062006,1740886243478,-506.44511436,0.00025477,2]
[355062008,1740886243488,-502.60516911,0.00025477,2]
[355062011,1740886243498,-500.0,0.00025477,2]
[355062013,1740886243509,-500.0,0.00025477,2]
[355062015,1740886243519,-500.0,0.00025477,2]
[355062017,1740886243528,-500.0,0.00025477,2]
[355062019,1740886243539,-405.0818724,0.00025477,2]
[355062021,1740886243550,-500.0,0.00025477,2]
[355062023,1740886243560,-531.32833652,0.00025477,2]
[355062025,1740886243570,-505.71271265,0.00025477,2]
[355062027,1740886243580,-500.0,0.00025477,2]
[355062029,1740886243590,-500.0,0.00025477,2]
[355062031,1740886243600,-509.47742302,0.00025477,2]
[355062033,1740886243610,-506.61091812,0.00025477,2]
[355062035,1740886243620,-500.0,0.00025477,2]
[355062037,1740886243631,-500.0,0.00025477,2]
[355062039,1740886243640,-500.0,0.00025477,2]
[355062041,1740886243651,-500.0,0.00025477,2]
[355062043,1740886243661,-500.0,0.00025477,2]
[355062045,1740886243671,-500.0,0.00025477,2]
[355062047,1740886243681,-624.11876666,0.00025477,2]
[355062049,1740886243691,-424.11971675,0.00025477,2]
[355062051,1740886243702,-500.0,0.00025477,2]
[355062053,1740886243712,-500.0,0.00025477,2]
[355062055,1740886243722,-505.47310385,0.00025477,2]
[355062057,1740886243732,-506.37500391,0.00025477,2]
[355062059,1740886243742,-500.0,0.00025477,2]
[355062062,1740886243752,-505.59814971,0.00025477,2]
[355062064,1740886243762,-507.34184093,0.00025477,2]
[355062066,1740886243771,-500.0,0.00025477,2]
[355062068,1740886243781,-500.0,0.00025477,2]
[355062070,1740886243791,-500.0,0.00025477,2]
[355062072,1740886243801,-504.45929756,0.00025477,2]
[355062074,1740886243811,-507.25473243,0.00025477,2]
[355062076,1740886243821,-500.0,0.00025477,2]
[355062079,1740886243831,-500.0,0.00025477,2]
[355062082,1740886243840,-504.36934618,0.00025477,2]
[355062085,1740886243850,-507.55706919,0.00025477,2]
[355062087,1740886243860,-269.56283085,0.00025477,2]
[355062089,1740886243870,-502.22110238,0.00025477,2]
[355062091,1740886243880,-500.0,0.00025477,2]
[355062093,1740886243889,-505.72597972,0.00025477,2]
[355062095,1740886243899,-500.0,0.00025477,2]
[355062097,1740886243908,-500.0,0.00025477,2]
[355062099,1740886243918,-500.0,0.00025477,2]
[355062101,1740886243928,-500.7765121,0.00025477,2]
[355062103,1740886243942,-500.0,0.00025477,2]
[355062105,1740886243952,-500.0,0.00025477,2]
[355062107,1740886243962,-504.37011889,0.00025477,2]
[355062109,1740886243972,-497.71277557,0.00025477,2]
[355062111,1740886243982,-500.0,0.00025477,2]
[355062113,1740886243992,-500.0,0.00025477,2]
[355062115,1740886244001,-506.89838366,0.00025477,2]
[355062117,1740886244011,-505.62036642,0.00025477,2]
[355062120,1740886244021,-504.78601272,0.00025477,2]
[355062122,1740886244031,-500.0,0.00025477,2]
[355062124,1740886244041,-500.0,0.00025477,2]
[355062126,1740886244051,-504.2603633,0.00025477,2]
[355062128,1740886244060,-502.72358602,0.00025477,2]
[355062130,1740886244071,-500.0,0.00025477,2]
[355062132,1740886244081,-505.24513182,0.00025477,2]
[355062134,1740886244091,-500.0,0.00025477,2]
[355062136,1740886244101,-500.0,0.00025477,2]
[355062138,1740886244111,-505.92092703,0.00025477,2]
[355062140,1740886244121,-500.0,0.00025477,2]
[355062142,1740886244131,-505.01568639,0.00025477,2]
[355062144,1740886244140,-501.82446948,0.00025477,2]
[355062146,1740886244150,-282.26004858,0.00025477,2]
[355062148,1740886244159,-500.0,0.00025477,2]
[355062150,1740886244169,-506.02758937,0.00025477,2]
[355062152,1740886244179,-500.0,0.00025477,2]
[355062154,1740886244188,-500.0,0.00025477,2]
[355062156,1740886244198,-507.20342213,0.00025477,2]
[355062158,1740886244208,-500.0,0.00025477,2]
[355062160,1740886244218,-500.0,0.00025477,2]
[355062162,1740886244231,-504.86401648,0.00025477,2]
[355062164,1740886244241,-500.0,0.00025477,2]
[355062166,1740886244251,-500.0,0.00025477,2]
[355062168,1740886244261,-506.50224823,0.00025477,2]
[355062170,1740886244271,-500.0,0.00025477,2]
[355062172,1740886244280,-505.21757778,0.00025477,2]
[355062174,1740886244290,-500.0,0.00025477,2]
[355062176,1740886244300,-500.0,0.00025477,2]
[355062178,1740886244313,-505.72515218,0.00025477,2]
[355062180,1740886244323,-500.0,0.00025477,2]
[355062182,1740886244333,-500.0,0.00025477,2]
[355062184,1740886244343,-502.87360574,0.00025477,2]
[355062186,1740886244353,-500.0,0.00025477,2]
[355062188,1740886244363,-500.0,0.00025477,2]
[355062190,1740886244373,-507.72218749,0.00025477,2]
[355062192,1740886244383,-500.0,0.00025477,2]
[355062194,1740886244393,-503.64803381,0.00025477,2]
[355062196,1740886244404,-500.0,0.00025477,2]
[355062198,1740886244414,-500.0,0.00025477,2]
[355062200,1740886244423,-531.5301477,0.00025477,2]
[355062202,1740886244433,-500.0,0.00025477,2]
[355062204,1740886244443,-503.53364008,0.00025477,2]
[355062207,1740886244457,-511.14076004,0.00025477,2]
[355062209,1740886244467,-505.80121772,0.00025477,2]
[355062211,1740886244477,-503.87292547,0.00025477,2]
[355062213,1740886244487,-500.0,0.00025477,2]
[355062215,1740886244497,-500.0,0.00025477,2]
[355062217,1740886244507,-500.0,0.00025477,2]
[355062219,1740886244517,-500.0,0.00025477,2]
[355062221,1740886244526,-506.2818193,0.00025477,2]
[355062223,1740886244537,-159.223111,0.00025477,2]
[355062225,1740886244547,-505.86397048,0.00025477,2]
[355062227,1740886244556,-507.13746562,0.00025477,2]
[355062229,1740886244566,-502.76325968,0.00025477,2]
[355062231,1740886244576,-506.15634152,0.00025477,2]
[355062233,1740886244588,-503.55600527,0.00025477,2]
[355062235,1740886244598,-508.36446761,0.00025477,2]
[355062237,1740886244608,-505.63662347,0.00025477,2]
[355062239,1740886244618,-500.0,0.00025477,2]
[355062241,1740886244628,-509.81664229,0.00025477,2]
[355062243,1740886244637,-504.17777234,0.00025477,2]
[355062245,1740886244647,-500.0,0.00025477,2]
[355062247,1740886244656,-572.4,0.00025477,2]
[355062249,1740886244666,-500.0,0.00025477,2]
[355062251,1740886244676,-500.0,0.00025477,2]
[355062253,1740886244686,-503.84640118,0.00025477,2]
[355062255,1740886244695,-500.0,0.00025477,2]
[355062257,1740886244705,-504.42641448,0.00025477,2]
[355062259,1740886244714,-502.91153639,0.00025477,2]
[355062261,1740886244724,-649.25,0.00025477,2]
[355062263,1740886244733,-504.04613373,0.00025477,2]
[355062265,1740886244743,-500.0,0.00025477,2]
[355062267,1740886244753,-500.0,0.00025477,2]
[355062269,1740886244762,-500.0,0.00025477,2]
[355062271,1740886244772,-500.0,0.00025477,2]
[355062273,1740886244781,-505.30845034,0.00025477,2]
[355062275,1740886244791,-500.0,0.00025477,2]
[355062277,1740886244801,-151.0,0.00025477,7]
[355062279,1740886244810,-500.0,0.00025477,2]
[355062281,1740886244820,-500.0,0.00025477,2]
[355062283,1740886244830,-151.0,0.00025477,7]
[355062285,1740886244839,-553.09,0.00025477,2]
[355062287,1740886244849,-512.54,0.00025477,2]
[355062302,1740886244988,-504.9400949,0.00025477,2]
[355062305,1740886244999,-500.0,0.00025477,2]
[355062307,1740886245009,-500.0,0.00025477,2]
[355062309,1740886245018,-500.0,0.00025477,2]
[355062310,1740886245028,-151.0,0.00025477,7]
[355062312,1740886245037,-500.0,0.00025477,2]
[355062314,1740886245047,-500.0,0.00025477,2]
[355062317,1740886245057,-500.0,0.00025477,2]
[355062319,1740886245066,-505.87473935,0.00025477,2]
[355062321,1740886245076,-500.0,0.00025477,2]
[355062323,1740886245087,-506.38247217,0.00025477,2]
[355062325,1740886245097,-506.34922403,0.00025477,2]
[355062326,1740886245107,-500.0,0.00025477,2]
[355062328,1740886245116,-504.12849488,0.00025477,2]
[355062330,1740886245125,-510.57934882,0.00025477,2]
[355062332,1740886245135,-500.0,0.00025477,2]
[355062334,1740886245144,-500.0,0.00025477,2]
[355062336,1740886245154,-503.59447481,0.00025477,2]
[355062338,1740886245163,-504.24807854,0.00025477,2]
[355062340,1740886245172,-500.0,0.00025477,2]
[355062342,1740886245181,-510.88,0.00025477,2]
[355062344,1740886245191,-500.0,0.00025477,2]
[355062346,1740886245201,-506.90613154,0.00025477,2]
[355062348,1740886245210,-516.40330202,0.00025477,2]
[355062350,1740886245220,-507.17574153,0.00025477,2]
[355062352,1740886245233,-503.7967513,0.00025477,2]
[355062354,1740886245242,-501.69977692,0.00025477,2]
[355062356,1740886245251,-500.0,0.00025477,2]
[355062358,1740886245261,-509.09555702,0.00025477,2]
[355062360,1740886245270,-503.32676735,0.00025477,2]
[355062362,1740886245280,-503.38125136,0.00025477,2]
[355062364,1740886245289,-502.77377581,0.00025477,2]